bitfinex/quotes_SOLUSD_20250625
["timestamp","ask_amount","ask_price","bid_price","bid_amount"]
[1750872890579,148.6,143.77,143.74,6.14009987]
[1750872891778,148.6,143.77,143.73,13.59750583]
[1750872892879,148.6,143.77,143.74,6.64009987]
[1750872894001,148.6,143.77,143.75,6.64009987]
[1750872894239,18.64964886,143.81,143.76,6.64009987]
[1750872894492,5.19237867,143.8,143.77,6.64009987]
[1750872895271,5.19237867,143.8,143.77,13.59564722]
[1750872895485,20.21624886,143.81,143.78,6.64009987]
[1750872895683,1.5666,143.81,143.79,6.64009987]
[1750872895882,1.5666,143.81,143.8,6.64009987]
[1750872896090,18.64964886,143.83,143.8,6.64009987]
[1750872896382,18.64964886,143.83,143.81,6.64009987]
[1750872896786,1.5076,143.84,143.81,6.64009987]
[1750872896996,1.5076,143.84,143.82,13.59314354]
[1750872897212,1.5076,143.84,143.78,6.95507024]
[1750872897373,25.28974873,143.83,143.79,6.64009987]
[1750872897572,6.64009987,143.82,143.78,6.64009987]
[1750872898205,6.64009987,143.81,143.76,6.95589014]
[1750872898422,6.64009987,143.81,143.76,13.59599001]
[1750872899917,13.59373672,143.81,143.76,13.59599001]
[1750872900312,6.95363685,143.81,143.76,13.59599001]
[1750872900620,18.64964886,143.79,143.75,6.9564198]
[1750872900817,6.64009987,143.76,143.72,6.64009987]
[1750872901316,25.28974873,143.77,143.72,13.5978378]
[1750872901490,32.24535799,143.77,143.72,13.5978378]
[1750872901690,25.28974873,143.77,143.72,13.5978378]
[1750872902589,150.2666,143.78,143.73,6.64009987]
[1750872902789,150.2666,143.78,143.74,6.64009987]
[1750872903220,150.2666,143.78,143.74,13.59696315]
[1750872905319,150.2666,143.78,143.76,6.64009987]
[1750872905798,150.2666,143.78,143.75,6.64009987]
[1750872906404,150.2666,143.78,143.74,13.59696315]
[1750872907014,150.2666,143.78,143.75,6.64009987]
[1750872907395,150.2666,143.78,143.74,6.64009987]
[1750872908106,150.2666,143.78,143.72,17.39488898]
[1750872908107,150.2666,143.78,143.75,6.64009987]
[1750872908906,150.2666,143.78,143.76,6.64009987]
[1750872909247,1.6666,143.78,143.77,6.64009987]
[1750872911118,1.6666,143.78,143.77,13.59565387]
[1750872911416,1.6666,143.78,143.75,6.64009987]
[1750872911620,1.6666,143.78,143.75,13.59642163]
[1750872914121,1.6666,143.78,143.76,6.64009987]
[1750872915727,1.6666,143.78,143.75,6.64009987]
[1750872916227,180.8453112,143.77,143.73,6.64009987]
[1750872916403,6.64009987,143.75,143.71,6.64009987]
[1750872916599,155.24009987,143.76,143.72,6.64009987]
[1750872918012,162.19622573,143.76,143.72,6.64009987]
[1750872919027,25.28974873,143.75,143.7,6.64009987]
[1750872919234,155.24009987,143.74,143.7,6.64009987]
[1750872920120,155.24009987,143.74,143.7,13.59898493]
[1750872920417,162.19714517,143.74,143.7,13.59898493]
[1750872920625,1.6077,143.73,143.7,13.59898493]
[1750872922739,1.6077,143.73,143.71,6.64009987]
[1750872923238,1.6077,143.73,143.7,13.59898493]
[1750872924541,1.6077,143.73,143.7,6.64009987]
[1750872925112,1.6077,143.73,143.7,13.59889056]
[1750872928011,1.6077,143.73,143.7,6.64009987]
[1750872928719,1.6077,143.73,143.67,6.96039535]
[1750872928720,6.64009987,143.72,143.67,6.96039535]
[1750872928933,6.64009987,143.72,143.68,6.64009987]
[1750872929119,18.64964886,143.72,143.68,6.64009987]
[1750872929742,1.6077,143.73,143.69,6.64009987]
[1750872929920,8.56528416,143.73,143.7,6.64009987]
[1750872930131,8.56528416,143.73,143.69,6.64009987]
[1750872930645,15.20538403,143.73,143.68,6.95961293]
[1750872930816,15.20538403,143.73,143.69,6.64009987]
[1750872931318,15.20538403,143.73,143.68,13.5997128]
[1750872932228,15.20538403,143.73,143.68,6.64009987]
[1750872932413,15.20538403,143.73,143.69,6.64009987]
[1750872933740,15.20538403,143.73,143.69,13.59933782]
[1750872934141,1.6077,143.73,143.69,13.59933782]
[1750872934349,148.6,143.74,143.72,6.64009987]
[1750872934639,148.6,143.74,143.69,32.95923795]
[1750872934640,148.6,143.74,143.73,6.64009987]
[1750872934843,175.51384873,143.77,143.73,6.64009987]
[1750872935139,168.87374886,143.77,143.74,6.64009987]
[1750872935314,168.87374886,143.77,143.69,50.3578043]
[1750872935510,168.87374886,143.77,143.74,6.64009987]
[1750872936317,168.87374886,143.77,143.71,6.64009987]
[1750872936318,18.64964886,143.76,143.71,6.64009987]
[1750872936520,148.6,143.75,143.72,6.64009987]
[1750872938044,1.6015,143.72,143.68,6.64009987]
[1750872938739,1.6015,143.72,143.67,6.96039535]
[1750872938740,1.6015,143.72,143.69,6.64009987]
[1750872940034,1.6015,143.72,143.69,13.59912127]
[1750872940846,148.6,143.74,143.71,6.64009987]
[1750872941147,148.6,143.74,143.73,6.64009987]
[1750872941347,1.6269,143.76,143.73,6.64009987]
[1750872941523,1.6269,143.76,143.74,6.64009987]
[1750872941722,1.6269,143.76,143.73,6.64009987]
[1750872942045,1.6269,143.76,143.73,13.59733114]
[1750872942420,1.6269,143.76,143.74,6.64009987]
[1750872942615,1.6269,143.76,143.73,6.95723127]
[1750872942842,1.6269,143.76,143.73,13.59733114]
[1750872946645,155.0763,143.78,143.75,6.64009987]
[1750872946829,155.0763,143.78,143.76,6.64009987]
[1750872946830,148.6,143.78,143.76,6.64009987]
[1750872947730,148.6,143.78,143.77,6.64009987]
[1750872947939,148.6,143.78,143.73,6.95723127]
[1750872948161,148.6,143.78,143.76,6.64009987]
[1750872949139,162.19528309,143.78,143.74,6.64009987]
[1750872949335,162.19528309,143.78,143.73,6.64009987]
[1750872949540,18.64964886,143.77,143.73,6.64009987]
[1750872950548,18.64964886,143.77,143.74,6.64009987]
[1750872950853,25.60533508,143.77,143.73,6.64009987]
[1750872951650,25.60533508,143.77,143.74,6.64009987]
[1750872952850,155.55525349,143.78,143.74,13.59707922]
[1750872953829,148.6,143.78,143.77,6.64009987]
[1750872954146,8.47578128,143.8,143.77,6.64009987]
[1750872954346,13.66622317,143.8,143.77,6.64009987]
[1750872955437,13.66622317,143.8,143.75,6.95615124]
[1750872955837,13.66622317,143.8,143.77,6.64009987]
[1750872956039,13.66622317,143.8,143.76,6.64009987]
[1750872957655,13.66622317,143.8,143.76,13.59607217]
[1750872958236,8.47578128,143.8,143.76,13.59607217]
[1750872958958,13.66786287,143.8,143.76,13.59607217]
[1750872959150,8.47578128,143.8,143.76,13.59607217]
[1750872959731,13.668337,143.8,143.76,13.59607217]
[1750872960355,13.668337,143.8,143.76,6.64009987]
[1750872960866,20.30843687,143.8,143.76,6.64009987]
[1750872961866,20.30843687,143.8,143.76,13.59603572]
[1750872962953,13.668337,143.8,143.76,13.59603572]
[1750872964755,13.668337,143.8,143.72,17.39397186]
[1750872964942,20.30843687,143.8,143.76,6.64009987]
[1750872965865,6.71395572,143.8,143.77,6.64009987]
[1750872966244,1.5214,143.8,143.77,6.64009987]
[1750872966444,6.71395572,143.8,143.77,6.64009987]
[1750872966769,6.71395572,143.8,143.76,13.59590657]
[1750872966955,20.30816064,143.8,143.75,13.59644222]
[1750872967267,6.64009987,143.77,143.73,6.64009987]
[1750872968148,148.6,143.78,143.76,6.64009987]
[1750872968356,148.6,143.78,143.77,6.64009987]
[1750872968746,148.6,143.78,143.76,6.64009987]
[1750872969153,148.6,143.78,143.75,6.64009987]
[1750872969871,148.6,143.78,143.75,13.59629254]
[1750872970244,148.6,143.78,143.75,6.64009987]
[1750872971789,148.6,143.78,143.76,6.64009987]
[1750872972677,148.6,143.78,143.75,6.64009987]
[1750872974072,148.6,143.78,143.75,13.59642335]
[1750872975986,148.6,143.78,143.76,6.64009987]
[1750872976181,148.6,143.78,143.77,6.64009987]
[1750872976481,148.6,143.78,143.76,6.64009987]
[1750872976676,148.6,143.78,143.75,13.59642335]
[1750872977673,148.6,143.78,143.74,13.59689869]
[1750872978471,25.28974873,143.77,143.73,13.59737118]
[1750872978864,25.28974873,143.77,143.73,6.95727131]
[1750872979058,18.64964886,143.73,143.68,6.64009987]
[1750872979260,6.64009987,143.69,143.66,28.3996992]
[1750872979508,6.64009987,143.68,143.66,28.3996992]
[1750872979795,6.64009987,143.69,143.66,28.3996992]
[1750872979961,6.64009987,143.69,143.64,13.60173702]
[1750872980163,25.06034886,143.7,143.65,6.64009987]
[1750872980465,38.65948558,143.7,143.65,6.64009987]
[1750872980683,6.64009987,143.69,143.65,6.64009987]
[1750872980879,6.64009987,143.68,143.64,13.60173702]
[1750872981181,6.64009987,143.68,143.64,6.64009987]
[1750872981558,6.64009987,143.68,143.63,13.60232826]
[1750872981759,6.64009987,143.68,143.63,6.96222839]
[1750872981960,6.64009987,143.68,143.63,13.60232826]
[1750872982158,18.64964886,143.67,143.63,13.60232826]
[1750872982374,25.28974873,143.67,143.63,13.60232826]
[1750872982775,18.64964886,143.67,143.63,13.60232826]
[1750872983162,18.64964886,143.67,143.63,6.64009987]
[1750872983379,6.64009987,143.66,143.61,6.64009987]
[1750872983559,18.64964886,143.65,143.61,6.64009987]
[1750872983765,18.64964886,143.65,143.61,13.60329729]
[1750872984895,25.28974873,143.65,143.61,13.60329729]
[1750872985369,6.64009987,143.64,143.6,27.48646217]
[1750872985780,15.62210086,143.63,143.6,27.48646217]
[1750872986284,15.62210086,143.63,143.6,34.45017852]
[1750872986484,15.62210086,143.63,143.6,20.8463623]
[1750872986988,15.62210086,143.63,143.59,6.64009987]
[1750872987185,15.62210086,143.63,143.6,6.64009987]
[1750872987396,0.14216157,143.64,143.6,6.64009987]
[1750872987984,6.64009987,143.63,143.58,6.64009987]
[1750872988186,6.64009987,143.62,143.58,6.64009987]
[1750872988485,18.64964886,143.61,143.57,6.96503273]
[1750872988789,20.29444886,143.61,143.58,6.64009987]
[1750872989868,1.6448,143.61,143.6,6.64009987]
[1750872990070,148.6,143.63,143.6,6.64009987]
[1750872990390,155.24009987,143.63,143.59,6.64009987]
[1750872990686,155.24009987,143.63,143.57,50.37814131]
[1750872990687,18.64964886,143.62,143.58,6.64009987]
[1750872991273,25.28974873,143.62,143.57,13.6051326]
[1750872991469,6.64009987,143.61,143.57,13.6051326]
[1750872991683,25.28974873,143.62,143.57,6.96503273]
[1750872991871,25.28974873,143.62,143.57,13.6051326]
[1750872992078,25.28974873,143.62,143.58,6.64009987]
[1750872992591,25.28974873,143.62,143.55,24.38061073]
[1750872992766,25.28974873,143.62,143.58,6.64009987]
[1750872993693,25.28974873,143.62,143.58,13.60453865]
[1750872994288,18.64964886,143.62,143.58,13.60453865]
[1750872994487,25.28974873,143.62,143.58,13.60453865]
[1750872994871,25.28974873,143.62,143.58,6.96443878]
[1750872995073,6.78226144,143.61,143.57,6.64009987]
[1750872995699,0.14216157,143.61,143.57,6.64009987]
[1750872995891,6.78226144,143.61,143.57,6.64009987]
[1750872996088,6.78226144,143.61,143.57,13.6050624]
[1750872996469,13.74557628,143.61,143.57,6.96496253]
[1750872996880,6.78226144,143.61,143.57,6.96496253]
[1750872997687,6.78226144,143.61,143.57,13.6050624]
[1750872997886,6.78226144,143.61,143.57,6.96496253]
[1750872998086,6.78226144,143.61,143.56,13.60562945]
[1750872998087,8.17679987,143.6,143.56,13.60562945]
[1750872998295,18.64964886,143.59,143.54,6.96669917]
[1750872998476,18.64964886,143.59,143.55,6.64009987]
[1750872998477,25.28974873,143.59,143.55,6.64009987]
[1750872998673,18.64964886,143.59,143.54,24.38344711]
[1750872998893,18.64964886,143.59,143.56,6.64009987]
[1750873000070,18.64964886,143.59,143.56,13.60577541]
[1750873001193,18.64964886,143.59,143.56,6.96567554]
[1750873001400,18.64964886,143.59,143.55,6.96598827]
[1750873001571,38.4444555,143.59,143.54,13.60661639]
[1750873001778,6.78226144,143.58,143.54,6.64009987]
[1750873002007,6.78226144,143.58,143.53,13.60707393]
[1750873002008,18.64964886,143.57,143.53,13.60707393]
[1750873002311,25.28974873,143.57,143.52,8.45557164]
[1750873002507,6.64009987,143.56,143.52,8.45557164]
[1750873002691,6.1904,143.59,143.52,8.45557164]
[1750873002884,6.1904,143.59,143.52,25.87474666]
[1750873002885,25.28974873,143.59,143.52,25.87474666]
[1750873003077,6.64009987,143.58,143.54,6.64009987]
[1750873003280,18.64964886,143.57,143.54,6.64009987]
[1750873003998,6.64009987,143.55,143.52,1.4881113]
[1750873004190,26.88444873,143.55,143.52,1.4881113]
[1750873004383,18.64964886,143.53,143.52,1.4881113]
[1750873004575,1.5947,143.55,143.52,8.12821117]
[1750873004781,1.5947,143.55,143.54,6.64009987]
[1750873005179,1.5947,143.55,143.52,8.45577759]
[1750873005474,1.5947,143.55,143.54,6.96669917]
[1750873005696,1.5947,143.55,143.53,6.64009987]
[1750873006003,20.24434886,143.55,143.52,1.4881113]
[1750873006182,26.88444873,143.55,143.52,1.4881113]
[1750873006889,20.24434886,143.55,143.52,8.45575032]
[1750873007301,20.24434886,143.55,143.52,1.4881113]
[1750873007680,1.5947,143.55,143.53,6.64009987]
[1750873007901,1.5947,143.55,143.54,6.64009987]
[1750873008295,174.6,143.58,143.54,6.64009987]
[1750873008607,148.6,143.58,143.55,6.64009987]
[1750873008807,148.6,143.58,143.52,25.87488614]
[1750873008981,148.6,143.58,143.54,6.64009987]
[1750873009386,59.37074873,143.59,143.57,6.64009987]
[1750873009387,1.6664,143.59,143.57,6.64009987]
[1750873009688,1.5637,143.63,143.58,13.60485819]
[1750873009899,8.20379987,143.63,143.59,6.64009987]
[1750873010084,18.64964886,143.62,143.59,6.64009987]
[1750873011108,18.64964886,143.62,143.59,13.6042473]
[1750873011501,18.64964886,143.62,143.59,6.96414743]
[1750873011812,18.64964886,143.62,143.59,13.6042473]
[1750873012205,18.64964886,143.62,143.59,6.64009987]
[1750873012503,18.64964886,143.62,143.59,13.60431716]
[1750873012713,18.64964886,143.62,143.56,6.96572861]
[1750873013010,18.64964886,143.62,143.59,6.96427327]
[1750873013212,18.64964886,143.62,143.59,13.60437314]
[1750873014808,18.64964886,143.62,143.59,6.96427327]
[1750873014995,18.64964886,143.62,143.59,13.60437314]
[1750873015712,1.5637,143.63,143.61,6.64009987]
[1750873015895,148.6,143.65,143.62,6.64009987]
[1750873016801,148.6,143.65,143.62,13.60276243]
[1750873017204,155.24009987,143.65,143.61,6.96311112]
[1750873017393,18.64964886,143.64,143.6,13.60366684]
[1750873018611,18.64964886,143.64,143.61,6.64009987]
[1750873019806,18.64964886,143.64,143.6,13.60366684]
[1750873020294,18.64964886,143.64,143.61,6.64009987]
[1750873020812,32.25161814,143.64,143.59,6.96409211]
[1750873020986,32.25161814,143.64,143.6,6.64009987]
[1750873021433,25.28974873,143.64,143.6,6.64009987]
[1750873021610,148.6,143.65,143.61,6.64009987]
[1750873021800,1.6614,143.66,143.59,24.3747753]
[1750873021989,1.6614,143.66,143.63,6.64009987]
[1750873022193,1.6614,143.66,143.62,6.64009987]
[1750873022721,1.6614,143.66,143.63,6.64009987]
[1750873023027,1.6614,143.66,143.64,6.64009987]
[1750873023510,1.6614,143.66,143.62,6.9624741]
[1750873023693,1.6614,143.66,143.64,6.64009987]
[1750873024203,1.6614,143.66,143.64,13.60153835]
[1750873025001,26.0,143.68,143.65,6.64009987]
[1750873025314,1.5893,143.7,143.67,6.64009987]
[1750873025521,1.5893,143.7,143.69,6.64009987]
[1750873025698,44.64964886,143.69,143.63,6.96231912]
[1750873025893,6.64009987,143.68,143.64,6.64009987]
[1750873026209,51.28974873,143.69,143.64,13.60185384]
[1750873026790,199.88974873,143.69,143.64,13.60185384]
[1750873026992,206.84939517,143.69,143.64,13.60185384]
[1750873027827,206.84939517,143.69,143.64,6.64009987]
[1750873029391,206.84939517,143.69,143.64,13.6018252]
[1750873029730,11.82256593,143.68,143.63,6.64009987]
[1750873029903,11.82256593,143.68,143.64,6.64009987]
[1750873030513,11.82256593,143.68,143.63,6.64009987]
[1750873032017,18.78260767,143.68,143.63,13.60213198]
[1750873032522,18.78195456,143.68,143.63,13.60213198]
[1750873032703,12.14185469,143.68,143.63,13.60213198]
[1750873033025,18.78195456,143.68,143.63,13.60213198]
[1750873033824,18.78195456,143.68,143.64,6.64009987]
[1750873034122,12.14185469,143.68,143.64,6.64009987]
[1750873034514,13.60014161,143.68,143.64,6.64009987]
[1750873034991,193.24964886,143.69,143.61,24.37156186]
[1750873034992,193.24964886,143.69,143.65,6.64009987]
[1750873035196,193.24964886,143.69,143.66,6.64009987]
[1750873035614,148.6,143.69,143.66,6.64009987]
[1750873035815,1.5893,143.7,143.62,26.0]
[1750873035816,1.5893,143.7,143.68,6.64009987]
[1750873036012,1.5893,143.7,143.69,6.64009987]
[1750873037118,1.5893,143.7,143.68,6.64009987]
[1750873037732,1.5893,143.7,143.67,6.64009987]
[1750873037906,8.54840678,143.7,143.67,6.64009987]
[1750873038236,8.54840678,143.7,143.66,6.64009987]
[1750873038536,8.54840678,143.7,143.67,6.64009987]
[1750873039413,1.5893,143.7,143.67,6.64009987]
[1750873040235,8.54826025,143.7,143.67,6.64009987]
[1750873040435,1.5893,143.7,143.67,13.60044654]
[1750873040615,1.5893,143.7,143.68,6.64009987]
[1750873041028,1.5893,143.7,143.69,6.64009987]
[1750873041519,6.6485,143.72,143.69,6.64009987]
[1750873042635,6.6485,143.72,143.69,6.95923389]
[1750873042930,6.6485,143.72,143.69,13.59933376]
[1750873044339,52.80544873,143.73,143.69,13.59933376]
[1750873044340,8.15579987,143.73,143.69,13.59933376]
[1750873044512,34.15579987,143.73,143.69,6.95923389]
[1750873044829,27.5157,143.73,143.69,13.59933376]
[1750873045746,34.15579987,143.73,143.69,6.95923389]
[1750873045939,34.15579987,143.73,143.69,13.59933376]
[1750873046248,27.5157,143.73,143.69,13.59933376]
[1750873046940,34.15579987,143.73,143.69,13.59933376]
[1750873047151,25.28974873,143.72,143.68,13.59980413]
[1750873047623,18.64964886,143.72,143.68,13.59980413]
[1750873048137,25.28974873,143.72,143.68,13.59980413]
[1750873048307,25.28974873,143.72,143.67,6.64009987]
[1750873048708,18.64964886,143.7,143.67,6.64009987]
[1750873048947,6.64009987,143.7,143.65,6.64009987]
[1750873049242,6.64009987,143.69,143.65,6.64009987]
[1750873049411,6.64009987,143.7,143.66,6.64009987]
[1750873049612,31.77014873,143.71,143.67,6.64009987]
[1750873050421,31.77014873,143.71,143.68,6.95991091]
[1750873050621,25.13004886,143.71,143.68,13.60001078]
[1750873051721,25.13004886,143.71,143.68,6.95991091]
[1750873051932,25.13004886,143.71,143.68,13.60001078]
[1750873054848,148.6,143.72,143.69,6.64009987]
[1750873056748,148.6,143.72,143.68,13.60001078]
[1750873056930,155.24009987,143.72,143.68,13.60001078]
[1750873057745,155.24009987,143.72,143.68,6.95991091]
[1750873058056,155.24009987,143.72,143.68,13.60001078]
[1750873060370,18.64964886,143.71,143.68,6.95991091]
[1750873060654,32.24830194,143.71,143.65,6.96136442]
[1750873060854,25.60820207,143.71,143.66,6.64009987]
[1750873061035,37.43510871,143.71,143.66,6.64009987]
[1750873062047,37.43510871,143.71,143.67,6.96039535]
[1750873063254,30.4765555,143.71,143.67,13.60049522]
[1750873063454,23.83645563,143.71,143.67,13.60049522]
[1750873064344,30.4765555,143.71,143.67,13.60049522]
[1750873066259,23.83645563,143.71,143.67,13.60049522]
[1750873069358,23.83645563,143.71,143.67,6.96039535]
[1750873069548,23.83645563,143.71,143.67,13.60049522]
[1750873070060,18.64964886,143.71,143.67,13.60049522]
[1750873070853,23.84672207,143.71,143.67,13.60049522]
[1750873071362,6.64009987,143.7,143.65,6.96136442]
[1750873071660,11.83717308,143.7,143.65,13.60146429]
[1750873071964,11.83717308,143.7,143.66,6.64009987]
[1750873072157,5.19707321,143.7,143.66,6.64009987]
[1750873073265,5.19707321,143.7,143.66,13.60058577]
[1750873073866,23.84672207,143.71,143.68,6.64009987]
[1750873074468,18.64964886,143.71,143.68,6.64009987]
[1750873074658,148.6,143.72,143.69,6.64009987]
[1750873075051,148.6,143.72,143.68,6.64009987]
[1750873075461,148.6,143.72,143.68,13.59959728]
[1750873077369,148.6,143.72,143.69,6.64009987]
[1750873077775,148.6,143.72,143.68,6.95949741]
[1750873077966,148.6,143.72,143.7,6.64009987]
[1750873078175,6.44,143.74,143.71,6.64009987]
[1750873078373,18.64964886,143.76,143.73,6.64009987]
[1750873078683,1.5785,143.77,143.75,6.64009987]
[1750873078982,5.20084192,143.76,143.75,6.64009987]
[1750873080278,5.20084192,143.76,143.74,13.59678314]
[1750873080482,5.20084192,143.76,143.73,6.95728271]
[1750873080682,6.64009987,143.74,143.69,13.59952641]
[1750873080982,6.64009987,143.72,143.68,13.59979768]
[1750873081578,6.64009987,143.72,143.68,13.59967053]
[1750873082175,13.59816668,143.72,143.68,6.64009987]
[1750873082361,6.64009987,143.72,143.68,13.59988966]
[1750873082561,11.84189413,143.73,143.69,6.64009987]
[1750873082769,18.64964886,143.75,143.71,6.64009987]
[1750873083079,5.20120227,143.74,143.71,6.64009987]
[1750873083281,18.64964886,143.75,143.71,6.64009987]
[1750873083593,5.20063563,143.74,143.72,6.64009987]
[1750873083758,5.20063563,143.75,143.72,6.64009987]
[1750873083961,5.20063563,143.74,143.73,6.64009987]
[1750873084182,5.20063563,143.76,143.73,6.64009987]
[1750873084394,150.1785,143.77,143.75,6.64009987]
[1750873084602,1.5785,143.77,143.75,6.64009987]
[1750873084763,5.198943,143.76,143.75,6.64009987]
[1750873084963,5.198943,143.76,143.74,6.64009987]
[1750873085262,18.64964886,143.75,143.68,50.19356837]
[1750873085462,5.19700974,143.74,143.7,6.64009987]
[1750873085686,5.19783506,143.74,143.68,50.35968819]
[1750873085894,5.19783506,143.74,143.71,6.64009987]
[1750873086383,25.28974873,143.75,143.71,6.64009987]
[1750873086594,5.19801991,143.74,143.71,6.64009987]
[1750873086768,32.24628984,143.75,143.71,6.64009987]
[1750873087495,5.1970694,143.74,143.71,6.64009987]
[1750873087671,5.1970694,143.74,143.7,6.64009987]
[1750873087870,6.64009987,143.74,143.7,6.64009987]
[1750873088177,32.24628984,143.75,143.71,6.64009987]
[1750873088379,5.19735191,143.74,143.71,6.64009987]
[1750873088591,5.19717082,143.74,143.71,6.64009987]
[1750873088890,5.19717082,143.74,143.72,6.64009987]
[1750873090468,23.84591144,143.75,143.72,6.64009987]
[1750873090790,30.80255085,143.75,143.72,6.64009987]
[1750873091004,18.64964886,143.75,143.72,6.64009987]
[1750873091164,23.84591007,143.75,143.72,6.64009987]
[1750873091897,30.80253344,143.75,143.72,6.86357587]
[1750873092191,23.84591007,143.75,143.72,6.86357587]
[1750873093291,5.19626121,143.75,143.72,13.82143441]
[1750873093795,5.19626121,143.75,143.73,6.64009987]
[1750873094088,148.6,143.76,143.73,6.64009987]
[1750873095199,148.6,143.76,143.73,13.59720451]
[1750873095690,148.6,143.76,143.75,6.64009987]
[1750873095867,148.6,143.76,143.74,6.64009987]
[1750873096302,148.6,143.76,143.75,6.64009987]
[1750873096478,148.6,143.76,143.74,6.64009987]
[1750873097786,148.6,143.76,143.73,13.59720451]
[1750873098399,148.6,143.76,143.74,6.64009987]
[1750873099275,1.5785,143.77,143.75,6.64009987]
[1750873099896,1.5785,143.77,143.74,6.95692963]
[1750873099897,5.19033253,143.78,143.76,6.64009987]
[1750873100078,31.19033253,143.79,143.77,6.64009987]
[1750873100691,5.19033253,143.79,143.76,6.64009987]
[1750873101398,5.19033253,143.8,143.76,13.59579326]
[1750873102881,5.19033253,143.8,143.77,6.64009987]
[1750873103783,1.6577,143.81,143.79,6.64009987]
[1750873104109,5.18389431,143.83,143.8,6.64009987]
[1750873104291,5.18389431,143.83,143.82,6.64009987]
[1750873104497,1.5431,143.85,143.82,6.64009987]
[1750873104697,1.5431,143.85,143.83,6.64009987]
[1750873105213,5.17963822,143.87,143.84,6.64009987]
[1750873105515,148.6,143.88,143.85,6.64009987]
[1750873105693,148.6,143.88,143.82,6.95265608]
[1750873105895,21.67600936,143.89,143.84,6.64009987]
[1750873106094,26.84893023,143.89,143.84,6.64009987]
[1750873106413,21.67600936,143.89,143.84,6.64009987]
[1750873106586,21.67600936,143.89,143.85,6.64009987]
[1750873106917,8.086,143.89,143.86,6.64009987]
[1750873107215,8.61589775,143.89,143.86,6.64009987]
[1750873107910,6.64009987,143.87,143.79,6.95458654]
[1750873108122,6.64009987,143.84,143.8,6.64009987]
[1750873108689,25.28974873,143.85,143.8,6.64009987]
[1750873109099,13.59226894,143.84,143.8,6.64009987]
[1750873109307,6.64009987,143.83,143.79,6.64009987]
[1750873110100,15.19246894,143.84,143.79,6.64009987]
[1750873110712,15.19246894,143.84,143.78,26.0]
[1750873110713,25.28974873,143.83,143.78,6.64009987]
[1750873111525,15.19268274,143.84,143.8,6.64009987]
[1750873112621,15.19268274,143.84,143.77,6.9553391]
[1750873112795,15.19268274,143.84,143.79,6.64009987]
[1750873113296,15.19268274,143.84,143.8,6.64009987]
[1750873113495,1.6002,143.84,143.81,6.64009987]
[1750873114113,1.6002,143.84,143.82,6.64009987]
[1750873114927,1.6002,143.84,143.82,13.59316788]
[1750873115114,148.6,143.86,143.83,6.64009987]
[1750873115322,1.5953,143.88,143.85,6.64009987]
[1750873115623,25.28974873,143.87,143.82,6.64009987]
[1750873115820,6.64009987,143.86,143.82,6.64009987]
[1750873116323,25.28974873,143.87,143.83,6.64009987]
[1750873116508,18.64964886,143.87,143.83,6.64009987]
[1750873116704,34.54581857,143.88,143.84,6.64009987]
[1750873116917,41.18591844,143.88,143.84,6.64009987]
[1750873117618,1.5953,143.88,143.85,6.64009987]
[1750873117827,1.5953,143.88,143.84,6.95196705]
[1750873118125,1.5953,143.88,143.85,6.64009987]
[1750873119317,1.5953,143.88,143.85,13.59153035]
[1750873120621,1.5953,143.88,143.81,17.38304316]
[1750873120919,6.64009987,143.87,143.83,6.64009987]
[1750873121114,8.23539987,143.88,143.83,6.64009987]
[1750873121316,15.18579213,143.88,143.83,13.59239921]
[1750873121514,6.64009987,143.87,143.83,13.59239921]
[1750873121719,15.18579213,143.88,143.83,13.59239921]
[1750873122614,15.18579213,143.88,143.81,17.38304316]
[1750873122925,15.18579213,143.88,143.83,6.64009987]
[1750873123827,8.23539987,143.88,143.83,6.64009987]
[1750873124015,1.5953,143.88,143.84,6.64009987]
[1750873124911,1.5953,143.88,143.85,6.95168578]
[1750873125329,1.5953,143.88,143.85,13.59178565]
[1750873125829,8.23539987,143.88,143.84,13.59205948]
[1750873126026,8.23539987,143.88,143.84,6.95195961]
[1750873126627,8.23539987,143.88,143.84,13.59205948]
[1750873127127,1.5953,143.88,143.84,13.59205948]
[1750873127324,1.5953,143.88,143.85,6.64009987]
[1750873127700,8.23539987,143.88,143.84,13.59205948]
[1750873128117,6.64009987,143.86,143.83,6.95248827]
[1750873128503,6.64009987,143.86,143.82,6.952904]
[1750873130828,6.64009987,143.85,143.8,13.59420279]
[1750873131214,6.64009987,143.84,143.8,13.59420279]
[1750873131617,6.64009987,143.83,143.8,6.95410292]
[1750873132004,6.64009987,143.83,143.79,39.59445652]
[1750873135727,6.64009987,143.83,143.79,32.95435665]
[1750873135934,6.64009987,143.83,143.79,39.59445652]
[1750873136620,6.64009987,143.83,143.79,13.59445652]
[1750873137635,6.64009987,143.83,143.77,6.955554]
[1750873137819,6.64009987,143.81,143.77,13.59565387]
[1750873138335,6.64009987,143.8,143.77,6.955554]
[1750873138635,6.64009987,143.81,143.77,6.955554]